[Event "Titled Tuesday Blitz February 28 Early 2023"]
[White "Sharapov, Evgeny"]
[Black "Prudnykova, Olga"]
[WhiteFideId "14103133"]
[BlackFideId "14121093"]
[WhiteElo "2367"]
[BlackElo "2174"]
[Result "0-1"]
[Round "11"]
[TimeControl "180+2"]
[Date "2023.02.28"]
[WhiteClock "0:00:13"]
[BlackClock "0:00:13"]

1. e4 {[%clk 0:02:59]}  c5 {[%clk 0:02:59]} 2. Nf3 {[%clk 0:02:58]}  Nf6 {[%clk 0:02:59]} 3. Nc3 {[%clk 0:02:58]}  e6 {[%clk 0:02:59]} 4. d4 {[%clk 0:02:58]}  cxd4 {[%clk 0:03:00]} 5. Nxd4 {[%clk 0:02:58]}  Nc6 {[%clk 0:03:01]} 6. Ndb5 {[%clk 0:02:58]}  Bc5 {[%clk 0:03:00]} 7. Bf4 {[%clk 0:02:56]}  O-O {[%clk 0:02:58]} 8. Bc7 {[%clk 0:02:56]}  Qe7 {[%clk 0:02:58]} 9. Bd6 {[%clk 0:02:56]}  Bxd6 {[%clk 0:02:59]} 10. Qxd6 {[%clk 0:02:55]}  Qd8 {[%clk 0:02:59]} 11. Bd3 {[%clk 0:02:40]}  a6 {[%clk 0:02:53]} 12. Nd4 {[%clk 0:02:38]}  Ne7 {[%clk 0:02:52]} 13. O-O-O {[%clk 0:02:33]}  b5 {[%clk 0:02:32]} 14. g4 {[%clk 0:02:32]}  Bb7 {[%clk 0:02:29]} 15. g5 {[%clk 0:02:32]}  Ne8 {[%clk 0:02:28]} 16. Qg3 {[%clk 0:02:31]}  b4 {[%clk 0:02:23]} 17. Nce2 {[%clk 0:02:31]}  Qa5 {[%clk 0:02:20]} 18. Kb1 {[%clk 0:02:30]}  Nc7 {[%clk 0:02:06]} 19. h4 {[%clk 0:02:27]}  Nb5 {[%clk 0:02:06]} 20. Nb3 {[%clk 0:02:26]}  Qb6 {[%clk 0:02:04]} 21. h5 {[%clk 0:02:22]}  a5 {[%clk 0:01:53]} 22. g6 {[%clk 0:02:21]}  fxg6 {[%clk 0:01:53]} 23. hxg6 {[%clk 0:02:21]}  h6 {[%clk 0:01:53]} 24. Rh5 {[%clk 0:02:02]}  d5 {[%clk 0:01:43]} 25. Rdh1 {[%clk 0:01:45]}  a4 {[%clk 0:01:40]} 26. Nbc1 {[%clk 0:01:45]}  a3 {[%clk 0:01:36]} 27. b3 {[%clk 0:01:42]}  Nc3+ {[%clk 0:01:32]} 28. Nxc3 {[%clk 0:01:41]}  bxc3 {[%clk 0:01:33]} 29. Rxh6 {[%clk 0:01:19]}  gxh6 {[%clk 0:01:32]} 30. Qh4 {[%clk 0:01:20]}  Qd4 {[%clk 0:00:57]} 31. Qxe7 {[%clk 0:01:13]}  Qg7 {[%clk 0:00:57]} 32. Qxe6+ {[%clk 0:01:11]}  Kh8 {[%clk 0:00:57]} 33. exd5 {[%clk 0:01:02]}  Rae8 {[%clk 0:00:57]} 34. Qh3 {[%clk 0:00:56]}  Bxd5 {[%clk 0:00:51]} 35. Qxh6+ {[%clk 0:00:55]}  Qxh6 {[%clk 0:00:51]} 36. Rxh6+ {[%clk 0:00:55]}  Kg7 {[%clk 0:00:52]} 37. Rh7+ {[%clk 0:00:50]}  Kf6 {[%clk 0:00:51]} 38. Rd7 {[%clk 0:00:44]}  Be6 {[%clk 0:00:51]} 39. Rd4 {[%clk 0:00:39]}  Bf5 {[%clk 0:00:35]} 40. Bxf5 {[%clk 0:00:37]}  Kxf5 {[%clk 0:00:34]} 41. g7 {[%clk 0:00:35]}  Rg8 {[%clk 0:00:34]} 42. Rc4 {[%clk 0:00:35]}  Rxg7 {[%clk 0:00:31]} 43. Rxc3 {[%clk 0:00:34]}  Re1 {[%clk 0:00:30]} 44. b4 {[%clk 0:00:31]}  Rgg1 {[%clk 0:00:30]} 45. Rxa3 {[%clk 0:00:31]}  Rxc1+ {[%clk 0:00:30]} 46. Kb2 {[%clk 0:00:31]}  Rb1+ {[%clk 0:00:28]} 47. Kc3 {[%clk 0:00:31]}  Rgf1 {[%clk 0:00:29]} 48. Ra5+ {[%clk 0:00:30]}  Ke4 {[%clk 0:00:28]} 49. a4 {[%clk 0:00:28]}  Rxf2 {[%clk 0:00:27]} 50. Rc5 {[%clk 0:00:27]}  Rf3+ {[%clk 0:00:27]} 51. Kc4 {[%clk 0:00:27]}  Ra3 {[%clk 0:00:24]} 52. a5 {[%clk 0:00:27]}  Ra4 {[%clk 0:00:23]} 53. c3 {[%clk 0:00:27]}  Ra3 {[%clk 0:00:22]} 54. Kb5 {[%clk 0:00:26]}  Kd3 {[%clk 0:00:18]} 55. a6 {[%clk 0:00:22]}  Rba1 {[%clk 0:00:16]} 56. Rc6 {[%clk 0:00:21]}  Ke4 {[%clk 0:00:16]} 57. c4 {[%clk 0:00:21]}  Kd4 {[%clk 0:00:16]} 58. Rd6+ {[%clk 0:00:20]}  Ke5 {[%clk 0:00:16]} 59. c5 {[%clk 0:00:20]}  Rb1 {[%clk 0:00:15]} 60. Rh6 {[%clk 0:00:16]}  Rab3 {[%clk 0:00:14]} 61. Rh5+ {[%clk 0:00:16]}  Kf6 {[%clk 0:00:14]} 62. Rh4 {[%clk 0:00:16]}  Ra3 {[%clk 0:00:14]} 63. Rc4 {[%clk 0:00:16]}  Rba1 {[%clk 0:00:14]} 64. c6 {[%clk 0:00:16]}  Rxa6 {[%clk 0:00:14]} 65. c7 {[%clk 0:00:16]}  Ra8 {[%clk 0:00:14]} 66. c8=Q {[%clk 0:00:17]}  Rxc8 {[%clk 0:00:14]} 67. Rxc8 {[%clk 0:00:17]}  Ke6 {[%clk 0:00:15]} 68. Rd8 {[%clk 0:00:16]}  Ke7 {[%clk 0:00:15]} 69. Rd2 {[%clk 0:00:15]}  Ra7 {[%clk 0:00:14]} 70. Kb6 {[%clk 0:00:15]}  Ra4 {[%clk 0:00:15]} 71. b5 {[%clk 0:00:16]}  Ra3 {[%clk 0:00:15]} 72. Kb7 {[%clk 0:00:15]}  Ke6 {[%clk 0:00:15]} 73. b6 {[%clk 0:00:16]}  Ra2 {[%clk 0:00:16]} 74. Kb8 {[%clk 0:00:15]}  Rxd2 {[%clk 0:00:15]} 75. b7 {[%clk 0:00:15]}  Kd7 {[%clk 0:00:15]} 76. Ka7 {[%clk 0:00:13]}  Ra2+ {[%clk 0:00:15]} 77. Kb6 {[%clk 0:00:13]}  Rb2+ {[%clk 0:00:13]} 0-1


[Site "https://www.chess.com"]

[Event "Titled Tuesday Blitz February 28 Early 2023"]
[White "Fawzy, Adham"]
[Black "Estrada Nieto, Julian"]
[WhiteFideId "10613129"]
[BlackFideId "5101018"]
[WhiteElo "2543"]
[BlackElo "2176"]
[Result "1-0"]
[Round "11"]
[TimeControl "180+2"]
[Date "2023.02.28"]
[WhiteClock "0:00:10"]
[BlackClock "0:00:02"]

1. e4 {[%clk 0:02:57]}  e5 {[%clk 0:03:00]} 2. Nf3 {[%clk 0:02:57]}  Nc6 {[%clk 0:03:00]} 3. Bb5 {[%clk 0:02:58]}  a6 {[%clk 0:03:00]} 4. Ba4 {[%clk 0:02:58]}  Nf6 {[%clk 0:03:00]} 5. O-O {[%clk 0:02:58]}  Be7 {[%clk 0:03:01]} 6. Re1 {[%clk 0:02:58]}  b5 {[%clk 0:03:01]} 7. Bb3 {[%clk 0:02:58]}  d6 {[%clk 0:03:01]} 8. c3 {[%clk 0:02:57]}  O-O {[%clk 0:03:01]} 9. h3 {[%clk 0:02:58]}  Bb7 {[%clk 0:03:01]} 10. d4 {[%clk 0:02:29]}  Re8 {[%clk 0:03:01]} 11. Ng5 {[%clk 0:02:10]}  Rf8 {[%clk 0:03:01]} 12. Nf3 {[%clk 0:02:11]}  h6 {[%clk 0:02:54]} 13. Nbd2 {[%clk 0:02:04]}  Re8 {[%clk 0:02:54]} 14. Nf1 {[%clk 0:02:01]}  Bf8 {[%clk 0:02:54]} 15. Ng3 {[%clk 0:01:58]}  Na5 {[%clk 0:02:40]} 16. Bc2 {[%clk 0:01:56]}  c5 {[%clk 0:02:40]} 17. d5 {[%clk 0:01:49]}  Nc4 {[%clk 0:02:39]} 18. b3 {[%clk 0:01:45]}  Nb6 {[%clk 0:02:39]} 19. a4 {[%clk 0:01:46]}  bxa4 {[%clk 0:02:39]} 20. bxa4 {[%clk 0:01:46]}  Nc4 {[%clk 0:02:39]} 21. Bd3 {[%clk 0:01:36]}  Na5 {[%clk 0:02:37]} 22. Nh2 {[%clk 0:01:26]}  Bc8 {[%clk 0:02:37]} 23. f4 {[%clk 0:01:24]}  Rb8 {[%clk 0:02:13]} 24. Bc2 {[%clk 0:01:04]}  c4 {[%clk 0:01:51]} 25. Nh5 {[%clk 0:00:51]}  Nb3 {[%clk 0:01:41]} 26. Rb1 {[%clk 0:00:45]}  Nxh5 {[%clk 0:01:40]} 27. Qxh5 {[%clk 0:00:43]}  Bd7 {[%clk 0:01:37]} 28. Be3 {[%clk 0:00:37]}  Bxa4 {[%clk 0:01:30]} 29. f5 {[%clk 0:00:32]}  Nc5 {[%clk 0:01:21]} 30. Rxb8 {[%clk 0:00:18]}  Qxb8 {[%clk 0:01:21]} 31. Bxa4 {[%clk 0:00:18]}  Nxa4 {[%clk 0:01:19]} 32. Ng4 {[%clk 0:00:19]}  Qd8 {[%clk 0:00:36]} 33. f6 {[%clk 0:00:18]}  Nc5 {[%clk 0:00:30]} 34. fxg7 {[%clk 0:00:17]}  Bxg7 {[%clk 0:00:30]} 35. Bxh6 {[%clk 0:00:17]}  Nd7 {[%clk 0:00:24]} 36. Bg5 {[%clk 0:00:17]}  f6 {[%clk 0:00:22]} 37. Qg6 {[%clk 0:00:15]}  Nf8 {[%clk 0:00:09]} 38. Nh6+ {[%clk 0:00:10]}  Kh8 {[%clk 0:00:07]} 39. Nf7+ {[%clk 0:00:10]}  Kg8 {[%clk 0:00:07]} 40. Nh6+ {[%clk 0:00:10]}  Kh8 {[%clk 0:00:07]} 41. Qh5 {[%clk 0:00:10]}  fxg5 {[%clk 0:00:05]} 42. Nf7+ {[%clk 0:00:10]}  Kg8 {[%clk 0:00:06]} 43. Nxd8 {[%clk 0:00:11]}  Rxd8 {[%clk 0:00:06]} 44. Qxg5 {[%clk 0:00:11]}  Rd7 {[%clk 0:00:04]} 45. Rf1 {[%clk 0:00:12]}  Rb7 {[%clk 0:00:03]} 46. Qf5 {[%clk 0:00:10]}  a5 {[%clk 0:00:02]} 47. Qc8 {[%clk 0:00:10]} 1-0


[Site "https://www.chess.com"]

[Event "Titled Tuesday Blitz February 28 Early 2023"]
[White "Sovetbekova, Nurai"]
[Black "Chernov, Mikhail"]
[WhiteFideId "13801910"]
[BlackFideId "24143170"]
[WhiteElo "1857"]
[BlackElo "2113"]
[Result "0-1"]
[Round "11"]
[TimeControl "180+2"]
[Date "2023.02.28"]
[WhiteClock "0:00:13"]
[BlackClock "0:00:21"]

1. d4 {[%clk 0:03:00]}  d5 {[%clk 0:02:54]} 2. c4 {[%clk 0:03:00]}  Nc6 {[%clk 0:02:53]} 3. Nc3 {[%clk 0:02:53]}  Nf6 {[%clk 0:02:53]} 4. cxd5 {[%clk 0:02:50]}  Nxd5 {[%clk 0:02:54]} 5. e4 {[%clk 0:02:50]}  Nxc3 {[%clk 0:02:54]} 6. bxc3 {[%clk 0:02:51]}  e5 {[%clk 0:02:54]} 7. d5 {[%clk 0:02:51]}  Nb8 {[%clk 0:02:53]} 8. Nf3 {[%clk 0:02:50]}  Bg4 {[%clk 0:02:51]} 9. Qb3 {[%clk 0:02:44]}  Bxf3 {[%clk 0:02:48]} 10. gxf3 {[%clk 0:02:43]}  Qc8 {[%clk 0:02:43]} 11. Bb5+ {[%clk 0:02:39]}  Nd7 {[%clk 0:02:39]} 12. Bxd7+ {[%clk 0:02:34]}  Kxd7 {[%clk 0:02:37]} 13. Qb5+ {[%clk 0:02:12]}  Kd8 {[%clk 0:02:37]} 14. Be3 {[%clk 0:02:05]}  Bd6 {[%clk 0:02:36]} 15. Rg1 {[%clk 0:01:58]}  a6 {[%clk 0:02:10]} 16. Qb2 {[%clk 0:01:46]}  Rg8 {[%clk 0:02:09]} 17. c4 {[%clk 0:01:40]}  b6 {[%clk 0:02:07]} 18. Rc1 {[%clk 0:01:29]}  Qd7 {[%clk 0:01:58]} 19. c5 {[%clk 0:01:25]}  bxc5 {[%clk 0:01:59]} 20. Bxc5 {[%clk 0:01:24]}  Ke7 {[%clk 0:02:00]} 21. Qxe5+ {[%clk 0:01:21]}  Kf8 {[%clk 0:01:53]} 22. Qd4 {[%clk 0:01:13]}  Re8 {[%clk 0:01:49]} 23. Kd2 {[%clk 0:01:09]}  f6 {[%clk 0:01:36]} 24. Bxd6+ {[%clk 0:01:02]}  cxd6 {[%clk 0:01:35]} 25. Rc6 {[%clk 0:00:59]}  Kf7 {[%clk 0:01:30]} 26. Rgc1 {[%clk 0:00:41]}  Re7 {[%clk 0:01:23]} 27. Qb4 {[%clk 0:00:33]}  Rd8 {[%clk 0:01:11]} 28. Rxa6 {[%clk 0:00:31]}  Kg8 {[%clk 0:01:08]} 29. Rac6 {[%clk 0:00:29]}  Qa7 {[%clk 0:00:56]} 30. Ke1 {[%clk 0:00:19]}  Rb7 {[%clk 0:00:52]} 31. Qd2 {[%clk 0:00:18]}  Re8 {[%clk 0:00:37]} 32. Rc8 {[%clk 0:00:17]}  Re7 {[%clk 0:00:32]} 33. Rxe8+ {[%clk 0:00:17]}  Rxe8 {[%clk 0:00:33]} 34. Qc2 {[%clk 0:00:14]}  Qa3 {[%clk 0:00:23]} 35. Qb3 {[%clk 0:00:13]}  Qxc1+ {[%clk 0:00:21]} 0-1


[Site "https://www.chess.com"]

[Event "Titled Tuesday Blitz February 28 Early 2023"]
[White "Vaglio Munoz, Jaime"]
[Black "Simonovic, Miroslav"]
[WhiteFideId "6500145"]
[BlackFideId "919152"]
[WhiteElo "2199"]
[BlackElo "2057"]
[Result "1/2-1/2"]
[Round "11"]
[TimeControl "180+2"]
[Date "2023.02.28"]
[WhiteClock "0:00:39"]
[BlackClock "0:00:05"]

1. e4 {[%clk 0:02:59]}  c5 {[%clk 0:03:00]} 2. a3 {[%clk 0:02:59]}  a5 {[%clk 0:02:58]} 3. Nc3 {[%clk 0:02:56]}  Nc6 {[%clk 0:02:58]} 4. Nf3 {[%clk 0:02:54]}  e5 {[%clk 0:02:58]} 5. Bc4 {[%clk 0:02:53]}  g6 {[%clk 0:02:58]} 6. h4 {[%clk 0:02:50]}  h6 {[%clk 0:02:46]} 7. h5 {[%clk 0:02:49]}  g5 {[%clk 0:02:45]} 8. Nh2 {[%clk 0:02:36]}  d6 {[%clk 0:02:42]} 9. g4 {[%clk 0:02:34]}  Be6 {[%clk 0:02:22]} 10. d3 {[%clk 0:02:30]}  Bg7 {[%clk 0:02:09]} 11. Nf1 {[%clk 0:02:29]}  Nge7 {[%clk 0:02:08]} 12. Ng3 {[%clk 0:02:28]}  d5 {[%clk 0:02:03]} 13. exd5 {[%clk 0:02:24]}  Nxd5 {[%clk 0:01:59]} 14. Qf3 {[%clk 0:02:16]}  Nd4 {[%clk 0:01:51]} 15. Qd1 {[%clk 0:02:11]}  Qd7 {[%clk 0:01:38]} 16. f3 {[%clk 0:02:10]}  O-O {[%clk 0:01:23]} 17. Nce4 {[%clk 0:02:05]}  Rfc8 {[%clk 0:00:59]} 18. c3 {[%clk 0:02:04]}  b5 {[%clk 0:00:50]} 19. cxd4 {[%clk 0:01:58]}  bxc4 {[%clk 0:00:50]} 20. dxc5 {[%clk 0:01:58]}  cxd3 {[%clk 0:00:35]} 21. Qxd3 {[%clk 0:01:57]}  Rd8 {[%clk 0:00:13]} 22. Nd6 {[%clk 0:01:50]}  Nf4 {[%clk 0:00:12]} 23. Bxf4 {[%clk 0:01:48]}  exf4 {[%clk 0:00:13]} 24. Ngf5 {[%clk 0:01:48]}  Bxf5 {[%clk 0:00:13]} 25. gxf5 {[%clk 0:01:44]}  Be5 {[%clk 0:00:11]} 26. Rd1 {[%clk 0:01:42]}  Bxb2 {[%clk 0:00:09]} 27. O-O {[%clk 0:01:41]}  Be5 {[%clk 0:00:09]} 28. Rfe1 {[%clk 0:01:39]}  Bxd6 {[%clk 0:00:09]} 29. cxd6 {[%clk 0:01:39]}  Re8 {[%clk 0:00:09]} 30. Re4 {[%clk 0:01:37]}  Rad8 {[%clk 0:00:07]} 31. f6 {[%clk 0:01:30]}  Re6 {[%clk 0:00:07]} 32. Rde1 {[%clk 0:01:20]}  Rxd6 {[%clk 0:00:06]} 33. Qb3 {[%clk 0:00:58]}  Rf8 {[%clk 0:00:05]} 34. Re7 {[%clk 0:00:56]}  Qh3 {[%clk 0:00:05]} 35. Qc2 {[%clk 0:00:49]}  Rxf6 {[%clk 0:00:03]} 36. Qb2 {[%clk 0:00:46]}  Qg3+ {[%clk 0:00:03]} 37. Qg2 {[%clk 0:00:43]}  Qxg2+ {[%clk 0:00:03]} 38. Kxg2 {[%clk 0:00:44]}  Re6 {[%clk 0:00:02]} 39. R7xe6 {[%clk 0:00:44]}  fxe6 {[%clk 0:00:03]} 40. Rxe6 {[%clk 0:00:44]}  Kg7 {[%clk 0:00:04]} 41. Rg6+ {[%clk 0:00:44]}  Kh7 {[%clk 0:00:03]} 42. Ra6 {[%clk 0:00:44]}  Rf5 {[%clk 0:00:03]} 43. Ra7+ {[%clk 0:00:43]}  Kg8 {[%clk 0:00:03]} 44. Kh3 {[%clk 0:00:44]}  Rb5 {[%clk 0:00:03]} 45. Kg4 {[%clk 0:00:44]}  Kf8 {[%clk 0:00:03]} 46. a4 {[%clk 0:00:44]}  Rb4 {[%clk 0:00:03]} 47. Rxa5 {[%clk 0:00:44]}  Rb6 {[%clk 0:00:03]} 48. Ra7 {[%clk 0:00:41]}  Ke8 {[%clk 0:00:03]} 49. a5 {[%clk 0:00:41]}  Rf6 {[%clk 0:00:03]} 50. Rb7 {[%clk 0:00:40]}  Kd8 {[%clk 0:00:03]} 51. Rb6 {[%clk 0:00:39]}  Rxb6 {[%clk 0:00:02]} 52. axb6 {[%clk 0:00:39]}  Kc8 {[%clk 0:00:03]} 53. Kf5 {[%clk 0:00:40]}  Kb7 {[%clk 0:00:03]} 54. Kg6 {[%clk 0:00:40]}  g4 {[%clk 0:00:04]} 55. fxg4 {[%clk 0:00:39]}  f3 {[%clk 0:00:05]} 56. Kxh6 {[%clk 0:00:39]}  f2 {[%clk 0:00:06]} 57. g5 {[%clk 0:00:40]}  f1=Q {[%clk 0:00:06]} 58. g6 {[%clk 0:00:40]}  Qf8+ {[%clk 0:00:06]} 59. Kh7 {[%clk 0:00:40]}  Qc5 {[%clk 0:00:04]} 60. h6 {[%clk 0:00:41]}  Qe7+ {[%clk 0:00:03]} 61. g7 {[%clk 0:00:41]}  Qe4+ {[%clk 0:00:03]} 62. Kh8 {[%clk 0:00:41]}  Qg6 {[%clk 0:00:04]} 63. h7 {[%clk 0:00:41]}  Qf6 {[%clk 0:00:04]} 64. Kg8 {[%clk 0:00:40]}  Qe6+ {[%clk 0:00:04]} 65. Kf8 {[%clk 0:00:40]}  Qf6+ {[%clk 0:00:05]} 66. Kg8 {[%clk 0:00:40]}  Qe6+ {[%clk 0:00:05]} 67. Kh8 {[%clk 0:00:39]}  Qf6 {[%clk 0:00:05]} 68. Kg8 {[%clk 0:00:39]} 1/2-1/2


[Site "https://www.chess.com"]

[Event "Titled Tuesday Blitz February 28 Early 2023"]
[White "Hon, Eric"]
[Black "Kostiukov, Alexandr"]
[WhiteFideId "2097117"]
[BlackFideId "14108100"]
[WhiteElo "1918"]
[BlackElo "2202"]
[Result "1/2-1/2"]
[Round "11"]
[TimeControl "180+2"]
[Date "2023.02.28"]
[WhiteClock "0:00:30"]
[BlackClock "0:00:12"]

1. e4 {[%clk 0:03:00]}  c5 {[%clk 0:02:58]} 2. Nf3 {[%clk 0:02:57]}  g6 {[%clk 0:02:58]} 3. d4 {[%clk 0:02:57]}  cxd4 {[%clk 0:02:57]} 4. Nxd4 {[%clk 0:02:58]}  Nf6 {[%clk 0:02:54]} 5. Nc3 {[%clk 0:02:58]}  Nc6 {[%clk 0:02:53]} 6. Be2 {[%clk 0:02:56]}  Bg7 {[%clk 0:02:52]} 7. Be3 {[%clk 0:02:55]}  O-O {[%clk 0:02:51]} 8. O-O {[%clk 0:02:54]}  d5 {[%clk 0:02:52]} 9. exd5 {[%clk 0:02:51]}  Nb4 {[%clk 0:02:52]} 10. Bf3 {[%clk 0:02:38]}  Nfxd5 {[%clk 0:02:50]} 11. Nxd5 {[%clk 0:02:38]}  Nxd5 {[%clk 0:02:47]} 12. Bxd5 {[%clk 0:02:29]}  Qxd5 {[%clk 0:02:47]} 13. c3 {[%clk 0:02:28]}  e5 {[%clk 0:02:43]} 14. Nb3 {[%clk 0:02:24]}  Qc6 {[%clk 0:02:42]} 15. Qd2 {[%clk 0:02:19]}  Be6 {[%clk 0:02:34]} 16. Rfd1 {[%clk 0:02:16]}  b6 {[%clk 0:02:23]} 17. Qd6 {[%clk 0:02:14]}  Rac8 {[%clk 0:02:21]} 18. Qxc6 {[%clk 0:02:04]}  Rxc6 {[%clk 0:02:21]} 19. Rd2 {[%clk 0:02:04]}  f5 {[%clk 0:02:06]} 20. f3 {[%clk 0:02:00]}  Bf6 {[%clk 0:02:03]} 21. Rad1 {[%clk 0:01:57]}  Kf7 {[%clk 0:01:59]} 22. f4 {[%clk 0:01:42]}  Re8 {[%clk 0:01:44]} 23. fxe5 {[%clk 0:01:35]}  Bxb3 {[%clk 0:01:32]} 24. axb3 {[%clk 0:01:26]}  Bxe5 {[%clk 0:01:29]} 25. Rd7+ {[%clk 0:01:24]}  Re7 {[%clk 0:01:29]} 26. Rxe7+ {[%clk 0:01:14]}  Kxe7 {[%clk 0:01:28]} 27. Bd4 {[%clk 0:01:14]}  Bxd4+ {[%clk 0:01:21]} 28. Rxd4 {[%clk 0:01:15]}  Rd6 {[%clk 0:01:21]} 29. Ra4 {[%clk 0:01:10]}  a5 {[%clk 0:01:05]} 30. b4 {[%clk 0:01:10]}  axb4 {[%clk 0:00:42]} 31. Rxb4 {[%clk 0:01:10]}  Kd7 {[%clk 0:00:42]} 32. h3 {[%clk 0:01:08]}  Kc6 {[%clk 0:00:42]} 33. Kf2 {[%clk 0:01:03]}  Rd2+ {[%clk 0:00:40]} 34. Kf3 {[%clk 0:01:03]}  Kc5 {[%clk 0:00:37]} 35. g4 {[%clk 0:01:01]}  Rd3+ {[%clk 0:00:29]} 36. Kg2 {[%clk 0:01:00]}  fxg4 {[%clk 0:00:29]} 37. hxg4 {[%clk 0:01:00]}  b5 {[%clk 0:00:23]} 38. Kf2 {[%clk 0:00:57]}  h5 {[%clk 0:00:20]} 39. gxh5 {[%clk 0:00:57]}  gxh5 {[%clk 0:00:20]} 40. Ke2 {[%clk 0:00:56]}  Rh3 {[%clk 0:00:19]} 41. Kf2 {[%clk 0:00:54]}  Rh2+ {[%clk 0:00:13]} 42. Kg3 {[%clk 0:00:54]}  Rh1 {[%clk 0:00:13]} 43. Kf4 {[%clk 0:00:48]}  Rg1 {[%clk 0:00:12]} 44. Kf3 {[%clk 0:00:45]}  Rg4 {[%clk 0:00:09]} 45. Rxg4 {[%clk 0:00:29]}  hxg4+ {[%clk 0:00:09]} 46. Kxg4 {[%clk 0:00:30]}  Kc4 {[%clk 0:00:10]} 47. Kf4 {[%clk 0:00:30]}  Kb3 {[%clk 0:00:10]} 48. Ke4 {[%clk 0:00:30]}  Kxb2 {[%clk 0:00:11]} 49. Kd4 {[%clk 0:00:29]}  Kb3 {[%clk 0:00:11]} 50. Kd3 {[%clk 0:00:29]}  Kb2 {[%clk 0:00:11]} 51. Kd4 {[%clk 0:00:29]}  Kb3 {[%clk 0:00:12]} 52. Kd3 {[%clk 0:00:30]}  Kb2 {[%clk 0:00:12]} 53. Kd4 {[%clk 0:00:30]} 1/2-1/2


[Site "https://www.chess.com"]

[Event "Titled Tuesday Blitz February 28 Early 2023"]
[White "Fernandez Hernandez, Gerardo"]
[Black "Gatterer, Florian"]
[WhiteFideId "2207400"]
[BlackFideId "811688"]
[WhiteElo "2204"]
[BlackElo "2221"]
[Result "1/2-1/2"]
[Round "11"]
[TimeControl "180+2"]
[Date "2023.02.28"]
[WhiteClock "0:02:58"]
[BlackClock "0:02:50"]

1. e4 {[%clk 0:03:00]}  c5 {[%clk 0:02:58]} 2. d3 {[%clk 0:03:00]}  Nc6 {[%clk 0:02:57]} 3. g3 {[%clk 0:03:01]}  g6 {[%clk 0:02:57]} 4. Bg2 {[%clk 0:03:02]}  Bg7 {[%clk 0:02:58]} 5. f4 {[%clk 0:03:02]}  e6 {[%clk 0:02:58]} 6. Nf3 {[%clk 0:03:03]}  Nge7 {[%clk 0:02:58]} 7. O-O {[%clk 0:03:03]}  O-O {[%clk 0:02:57]} 8. c3 {[%clk 0:03:02]}  b6 {[%clk 0:02:57]} 9. Be3 {[%clk 0:02:59]}  d5 {[%clk 0:02:56]} 10. e5 {[%clk 0:02:58]}  Ba6 {[%clk 0:02:50]} 1/2-1/2


[Site "https://www.chess.com"]

[Event "Titled Tuesday Blitz February 28 Early 2023"]
[White "Piriflillo"]
[Black "Winkels, Marcel"]
[BlackFideId "1003887"]
[WhiteElo "2323"]
[BlackElo "1900"]
[Result "1-0"]
[Round "11"]
[TimeControl "180+2"]
[Date "2023.02.28"]
[WhiteClock "0:00:03"]
[BlackClock "0:00:03"]

1. d4 {[%clk 0:03:00]}  Nf6 {[%clk 0:02:58]} 2. c4 {[%clk 0:03:00]}  g6 {[%clk 0:02:59]} 3. g3 {[%clk 0:03:00]}  c6 {[%clk 0:02:57]} 4. Bg2 {[%clk 0:03:00]}  d5 {[%clk 0:02:57]} 5. cxd5 {[%clk 0:02:59]}  cxd5 {[%clk 0:02:57]} 6. Nc3 {[%clk 0:02:59]}  Bg7 {[%clk 0:02:57]} 7. Bg5 {[%clk 0:02:59]}  e6 {[%clk 0:02:52]} 8. Nf3 {[%clk 0:02:58]}  h6 {[%clk 0:02:46]} 9. Bf4 {[%clk 0:02:57]}  O-O {[%clk 0:02:44]} 10. O-O {[%clk 0:02:57]}  Nc6 {[%clk 0:02:43]} 11. Ne5 {[%clk 0:02:53]}  Nxe5 {[%clk 0:02:41]} 12. Bxe5 {[%clk 0:02:53]}  b6 {[%clk 0:02:39]} 13. Rc1 {[%clk 0:02:51]}  Ba6 {[%clk 0:02:38]} 14. Qa4 {[%clk 0:02:51]}  Bb7 {[%clk 0:02:30]} 15. Nb5 {[%clk 0:02:51]}  a6 {[%clk 0:02:26]} 16. Nd6 {[%clk 0:02:50]}  Bc8 {[%clk 0:02:14]} 17. Nxc8 {[%clk 0:02:28]}  Rxc8 {[%clk 0:02:10]} 18. Qxa6 {[%clk 0:02:26]}  Ra8 {[%clk 0:02:09]} 19. Qb7 {[%clk 0:02:22]}  Rxa2 {[%clk 0:02:07]} 20. Bc7 {[%clk 0:02:23]}  Qa8 {[%clk 0:01:50]} 21. Qxb6 {[%clk 0:02:21]}  Nd7 {[%clk 0:01:47]} 22. Qb4 {[%clk 0:02:13]}  Rc8 {[%clk 0:01:41]} 23. e3 {[%clk 0:02:03]}  Bf8 {[%clk 0:01:34]} 24. Bd6 {[%clk 0:02:04]}  Rxc1 {[%clk 0:01:22]} 25. Rxc1 {[%clk 0:02:03]}  Ra1 {[%clk 0:01:18]} 26. Rxa1 {[%clk 0:01:56]}  Qxa1+ {[%clk 0:01:17]} 27. Bf1 {[%clk 0:01:55]}  Bxd6 {[%clk 0:01:09]} 28. Qxd6 {[%clk 0:01:55]}  Nf6 {[%clk 0:01:10]} 29. b4 {[%clk 0:01:45]}  Ne4 {[%clk 0:01:07]} 30. Qa6 {[%clk 0:01:36]}  Qb2 {[%clk 0:01:04]} 31. Qe2 {[%clk 0:01:35]}  Qxb4 {[%clk 0:01:00]} 32. h4 {[%clk 0:01:33]}  h5 {[%clk 0:00:57]} 33. Bg2 {[%clk 0:01:33]}  Qb1+ {[%clk 0:00:53]} 34. Kh2 {[%clk 0:01:32]}  Nf6 {[%clk 0:00:43]} 35. f3 {[%clk 0:01:31]}  Kg7 {[%clk 0:00:40]} 36. e4 {[%clk 0:01:17]}  dxe4 {[%clk 0:00:39]} 37. fxe4 {[%clk 0:01:18]}  Ng4+ {[%clk 0:00:39]} 38. Kh3 {[%clk 0:01:18]}  Qb4 {[%clk 0:00:35]} 39. d5 {[%clk 0:00:58]}  exd5 {[%clk 0:00:29]} 40. exd5 {[%clk 0:00:57]}  Qd6 {[%clk 0:00:30]} 41. Bf3 {[%clk 0:00:53]}  Nf6 {[%clk 0:00:26]} 42. Qd3 {[%clk 0:00:48]}  Qd7+ {[%clk 0:00:22]} 43. Kg2 {[%clk 0:00:44]}  Qd6 {[%clk 0:00:21]} 44. Qd4 {[%clk 0:00:44]}  Kh6 {[%clk 0:00:20]} 45. Qc4 {[%clk 0:00:32]}  Kg7 {[%clk 0:00:19]} 46. Qc6 {[%clk 0:00:32]}  Qe5 {[%clk 0:00:18]} 47. d6 {[%clk 0:00:30]}  Qb2+ {[%clk 0:00:17]} 48. Kh3 {[%clk 0:00:28]}  Qd2 {[%clk 0:00:14]} 49. Qc5 {[%clk 0:00:19]}  Kh6 {[%clk 0:00:10]} 50. Qe5 {[%clk 0:00:11]}  Kg7 {[%clk 0:00:10]} 51. Bc6 {[%clk 0:00:08]}  Qd3 {[%clk 0:00:08]} 52. d7 {[%clk 0:00:07]}  Qf1+ {[%clk 0:00:03]} 53. Kh2 {[%clk 0:00:07]}  Qf2+ {[%clk 0:00:03]} 54. Bg2 {[%clk 0:00:03]} 1-0


[Site "https://www.chess.com"]